bitfinex/quotes_ETHUSD_20240729
["timestamp","ask_amount","ask_price","bid_price","bid_amount"]
[1722284788089,38.26727367,3332.0,3331.9,7.50129]
[1722284788414,38.26727367,3332.0,3331.9,10.50258]
[1722284790429,38.26727367,3332.0,3331.9,17.19777368]
[1722284790725,38.26727367,3332.0,3331.9,22.31496393]
[1722284790892,36.76667367,3332.0,3331.9,23.55242928]
[1722284791093,31.49000241,3332.0,3331.9,6.00639136]
[1722284791306,33.91449674,3332.0,3331.7,3.00144]
[1722284791621,33.91449674,3332.0,3331.4,2.18766788]
[1722284791622,31.49000241,3332.0,3331.9,3.00129]
[1722284791831,31.49000241,3332.0,3331.9,6.00258]
[1722284791832,29.09430241,3332.0,3331.9,6.00258]
[1722284791972,29.09430241,3332.0,3331.9,8.54650238]
[1722284792382,28.78783327,3332.0,3331.9,10.50387]
[1722284792622,28.78783327,3332.0,3331.9,8.54649157]
[1722284792841,28.78783327,3332.0,3331.9,7.50258]
[1722284793442,28.78783327,3332.0,3331.9,6.00129]
[1722284794118,28.78783327,3332.0,3331.9,9.00258]
[1722284794979,28.78783327,3332.0,3331.8,3.00137]
[1722284795212,28.78783327,3332.0,3331.9,3.00129]
[1722284795396,28.78783327,3332.0,3331.9,6.00258]
[1722284796691,28.78783327,3332.0,3331.1,2.18810806]
[1722284796692,2.4684,3331.9,3330.7,5.19044806]
[1722284796893,2.4684,3331.9,3330.8,3.06223612]
[1722284797207,3.00144,3331.8,3330.7,3.00236]
[1722284797374,3.015384,3331.7,3330.7,3.00236]
[1722284797580,6.016914,3331.7,3330.7,3.00236]
[1722284797779,6.016914,3331.7,3330.6,3.00245]
[1722284798018,6.016914,3331.7,3330.2,3.00275]
[1722284798019,2.4684,3331.3,3330.2,3.00275]
[1722284798320,2.4684,3331.3,3330.3,3.00272]
[1722284798819,2.4684,3331.3,3330.1,13.2729]
[1722284798820,5.47029,3331.3,3330.1,13.2729]
[1722284799022,5.47029,3331.3,3330.2,0.06004395]
[1722284800119,5.47029,3331.3,3330.2,3.06286395]
[1722284800337,5.47029,3331.3,3330.3,3.0]
[1722284800529,6.317486,3331.3,3330.3,3.0]
[1722284800839,2.65,3330.9,3329.6,7.34]
[1722284800978,2.65,3330.9,3329.2,7.34]
[1722284800979,2.3587,3330.5,3329.2,7.34]
[1722284801178,2.3587,3330.5,3329.7,3.0032]
[1722284801382,2.3587,3330.5,3329.5,3.00344]
[1722284801612,2.3587,3330.5,3329.6,3.00335]
[1722284801833,2.3587,3330.5,3329.4,3.00353]
[1722284802031,2.3587,3330.5,3329.2,7.34]
[1722284802032,2.3587,3330.5,3329.5,3.00345]
[1722284802533,2.3587,3330.5,3329.6,3.00334]
[1722284803787,2.3587,3330.5,3329.4,3.00354]
[1722284804088,2.3587,3330.5,3329.5,3.00343]
[1722284804779,2.3587,3330.5,3329.8,3.00317]
[1722284804981,2.3587,3330.5,3329.9,0.06005464]
[1722284806825,2.3587,3330.5,3329.9,3.06313464]
[1722284807325,2.3587,3330.5,3329.9,3.00308]
[1722284807987,2.3587,3330.5,3329.7,3.00322]
[1722284808187,2.3587,3330.5,3328.6,10.27]
[1722284808188,2.3587,3329.9,3328.6,10.27]
[1722284808386,2.3587,3329.9,3329.4,3.00353]
[1722284808621,2.3587,3329.9,3329.2,3.00371]
[1722284809191,2.3587,3329.9,3329.3,3.06368215]
[1722284809621,2.3587,3329.9,3329.3,3.00362]
[1722284810207,2.3587,3329.9,3329.0,3.0039]
[1722284810825,2.3587,3329.9,3328.8,10.34402]
[1722284811093,5.3618,3329.9,3328.9,3.0]
[1722284811288,5.3618,3329.9,3328.9,3.00392]
[1722284811289,2.3587,3329.9,3328.9,3.00392]
[1722284811632,2.3587,3329.9,3329.0,3.00383]
[1722284811845,2.3587,3329.9,3328.8,7.34]
[1722284811846,3.00341,3329.6,3328.6,2.93]
[1722284812042,3.00319,3329.8,3328.6,3.0042]
[1722284812043,2.9057,3329.8,3328.6,3.0042]
[1722284812196,3.00336,3329.6,3328.6,3.0042]
[1722284812396,3.00327,3329.7,3328.5,3.00427]
[1722284812640,3.5927653,3329.7,3328.5,3.00427]
[1722284812840,3.00347,3329.5,3328.5,3.00427]
[1722284813229,3.00347,3329.5,3328.6,3.0]
[1722284813802,3.5927653,3329.7,3328.6,3.0]
[1722284813803,3.0034,3329.6,3328.6,3.0]
[1722284814255,3.5927653,3329.7,3328.6,3.0]
[1722284814256,2.3557,3329.8,3328.6,3.0]
[1722284814547,2.3557,3329.8,3328.9,3.00393]
[1722284815338,6.00237,3330.7,3327.6,7.34]
[1722284815339,2.3354,3329.0,3327.6,7.34]
[1722284815544,2.3354,3329.0,3327.4,3.00532]
[1722284815730,2.65,3327.8,3326.9,0.0394]
[1722284815934,2.3354,3327.6,3326.9,0.0394]
[1722284816602,5.34063,3327.6,3326.9,0.0394]
[1722284816802,3.00527,3327.5,3326.9,0.0394]
[1722284817005,3.00551,3327.3,3326.9,0.0394]
[1722284817752,3.00527,3327.5,3326.9,0.0394]
[1722284817915,2.3354,3327.6,3326.9,0.0394]
[1722284818157,2.3354,3327.6,3326.9,3.04519]
[1722284818460,2.3354,3327.6,3327.1,3.00556]
[1722284818980,2.3354,3327.6,3327.3,3.00537]
[1722284819431,2.3354,3327.6,3327.4,3.00533]
[1722284819627,2.3354,3327.6,3326.9,0.0394]
[1722284819628,2.3354,3327.6,3327.2,3.00548]
[1722284819867,2.3354,3327.6,3327.0,3.00568]
[1722284820075,2.3354,3327.6,3326.9,0.0394]
[1722284820076,2.3354,3327.6,3327.1,3.00561]
[1722284820433,2.3354,3327.6,3327.2,0.0601036]
[1722284820632,3.0,3328.8,3326.9,0.0394]
[1722284820633,5.35958,3328.7,3327.5,3.00517]
[1722284820834,3.00444,3328.5,3327.2,3.00549]
[1722284821076,3.55,3328.6,3326.9,0.0394]
[1722284821077,3.00463,3328.2,3326.9,3.04519]
[1722284821237,0.55,3328.4,3327.0,3.0]
[1722284821238,3.00488,3328.0,3327.0,3.0]
[1722284821433,3.0,3328.6,3326.9,0.0394]
[1722284821434,2.3554,3327.8,3326.9,0.0394]
[1722284821682,2.3554,3327.8,3326.9,3.04514]
[1722284822180,5.36039,3327.8,3326.9,0.0394]
[1722284822879,3.00527,3327.5,3326.9,0.0394]
[1722284823295,3.00545,3327.3,3326.9,0.0394]
[1722284823455,0.601037,3327.5,3326.9,0.0394]
[1722284823789,5.39181,3327.0,3326.9,0.0394]
[1722284823994,2.3861,3327.0,3326.9,0.0394]
[1722284824899,5.39181,3327.0,3326.9,0.0394]
[1722284825440,8.39752,3327.0,3326.9,0.0394]
[1722284825694,12.237272,3327.0,3326.9,0.0394]
[1722284825985,12.787272,3327.0,3326.9,0.0394]
[1722284826542,9.781562,3327.0,3326.9,0.0394]
[1722284826741,6.775852,3327.0,3326.9,0.0394]
[1722284827190,9.781562,3327.0,3326.9,0.0394]
[1722284828124,6.225852,3327.0,3326.9,0.0394]
[1722284828263,5.3861,3327.0,3326.9,0.0394]
[1722284828596,1.7585999,3327.0,3326.9,0.0394]
[1722284829091,3.0,3327.7,3326.9,0.0394]
[1722284829444,3.0,3327.7,3326.9,3.04519]
[1722284829669,0.300488,3327.9,3327.0,3.0057]
[1722284829890,3.00487,3328.0,3327.0,3.0057]
[1722284830586,0.50067,3328.7,3326.9,0.0394]
[1722284830587,3.00446,3328.4,3326.9,0.09950998]
[1722284830962,5.01077,3328.9,3327.4,3.00527]
[1722284830963,3.00436,3328.5,3327.4,3.00527]
[1722284831481,2.3149,3328.4,3327.4,3.00527]
[1722284831801,2.3149,3328.4,3327.8,3.00491]
[1722284832800,2.3149,3328.4,3327.6,3.0051]
[1722284833085,2.3149,3328.4,3327.7,3.005]
[1722284834281,2.3149,3328.4,3327.3,3.00541]
[1722284834454,5.31934,3328.4,3327.4,3.00534]
[1722284835366,2.846834,3328.4,3327.1,7.34]
[1722284835549,3.00503,3327.8,3326.9,3.04519]
[1722284835749,3.00509,3327.7,3326.9,0.0394]
[1722284836061,3.00503,3327.8,3326.9,0.0394]
[1722284836491,3.00508,3327.7,3326.9,0.0394]
[1722284836697,0.600998,3327.7,3326.9,0.0394]
[1722284836861,3.0049,3327.9,3326.9,3.04519]
[1722284837051,3.55,3328.3,3326.9,0.0394]
[1722284837052,3.00499,3327.8,3326.9,0.0394]
[1722284837254,3.00516,3327.6,3326.9,0.0394]
[1722284837443,3.00482,3328.0,3326.9,0.0394]
[1722284837658,3.00468,3328.2,3327.0,3.00564]
[1722284837990,3.0,3328.1,3327.0,3.00564]
[1722284838608,3.0,3328.1,3327.2,3.00552]
[1722284838829,2.3149,3329.1,3328.2,3.00456]
[1722284838967,2.3149,3329.1,3328.3,3.00447]
[1722284839169,2.3149,3329.1,3328.1,3.00468]
[1722284839170,2.54639,3329.1,3328.2,0.06008755]
[1722284839376,2.3149,3329.1,3328.2,0.06008755]
[1722284839599,2.3149,3329.1,3328.5,3.00435]
[1722284840015,2.3149,3329.1,3328.6,3.00426]
[1722284840224,2.3149,3329.1,3328.4,0.06008316]
[1722284840405,2.3149,3329.1,3328.5,3.00431]
[1722284840613,2.3149,3329.1,3328.6,3.00425]
[1722284842175,2.3149,3329.1,3328.5,3.00435]
[1722284842877,2.3149,3329.1,3328.3,3.00447]
[1722284843073,2.3149,3329.1,3328.1,3.546]
[1722284843582,0.06753867,3328.5,3328.1,3.546]
[1722284843786,0.00028167,3328.5,3327.8,7.34]
[1722284844216,3.00463167,3328.5,3327.8,7.34]
[1722284846532,3.30509484,3328.5,3327.8,7.34]
[1722284846835,2.3971,3328.4,3327.5,3.00525]
[1722284846982,2.3971,3328.4,3327.1,3.546]
[1722284847179,0.00028167,3327.9,3327.8,3.00498]
[1722284847415,0.00028167,3327.9,3327.8,6.00996]
[1722284847715,0.00028167,3327.9,3327.8,6.07005581]
[1722284848345,0.00028167,3327.9,3327.8,12.07503581]
[1722284848716,2.3154,3329.4,3327.8,12.07503581]
[1722284848717,2.3154,3329.4,3328.4,3.00442]
[1722284848922,0.531885,3329.3,3328.5,3.00434]
[1722284849253,0.531885,3329.3,3328.5,0.06008147]
[1722284849446,2.3154,3329.4,3328.5,0.06008147]
[1722284849749,2.3154,3329.4,3328.7,3.00417]
[1722284850933,2.3154,3329.4,3328.8,3.00408]
[1722284851243,2.3154,3329.4,3328.7,3.00416]
[1722284851756,2.3154,3329.4,3328.9,3.00392]
[1722284851900,2.3453,3329.9,3329.1,3.00381]
[1722284852104,2.880122,3329.9,3328.8,3.00403]
[1722284852307,2.880122,3329.9,3328.3,3.00453]
[1722284852308,3.00336,3329.6,3328.5,3.00434]
[1722284852500,2.3453,3329.9,3328.7,3.00417]
[1722284852501,3.00328,3329.7,3328.7,3.00417]
[1722284852729,5.34839,3329.9,3328.8,3.00401]
[1722284852929,5.34839,3329.9,3328.6,3.00424]
[1722284852930,3.00319,3329.8,3328.6,3.00424]
[1722284853150,3.538169,3329.7,3328.6,3.00424]
[1722284853355,3.00338,3329.6,3328.6,3.00424]
[1722284854215,3.00346,3329.5,3328.6,3.00424]
[1722284854415,3.00346,3329.5,3328.4,3.00442]
[1722284854620,5.39694,3329.4,3328.2,3.0046]
[1722284854920,3.00381,3329.1,3328.1,3.00471]
[1722284855627,3.00396,3329.0,3327.9,3.00483]
[1722284855849,2.3345,3328.7,3327.7,7.34]
[1722284856164,3.538145,3328.6,3327.6,3.00513]
[1722284856462,0.533865,3328.6,3327.4,3.00528]
[1722284856782,3.00445,3328.4,3327.4,3.00528]
[1722284857114,0.533865,3328.6,3327.0,7.34]
[1722284857115,0.533865,3328.6,3327.8,3.00498]
[1722284857320,0.533865,3328.6,3327.0,7.34]
[1722284857321,3.538135,3328.6,3327.6,3.00516]
[1722284857557,2.3345,3328.7,3327.0,7.34]
[1722284857714,2.3345,3328.7,3327.9,3.00483]
[1722284858166,2.3345,3328.7,3328.0,3.0048]
[1722284858716,2.3345,3328.7,3328.1,3.0047]
[1722284858915,2.3345,3328.7,3328.2,3.00462]
[1722284859230,2.3345,3328.7,3328.3,3.00453]
[1722284859421,5.393,3329.2,3328.3,3.00453]
[1722284859619,0.5932694,3329.1,3328.5,3.00433]
[1722284859826,3.5932694,3329.1,3328.3,3.00453]
[1722284860050,3.5932694,3329.1,3328.1,3.00464]
[1722284860356,3.5932694,3329.1,3328.0,3.00476]
[1722284860357,3.5932694,3329.1,3328.2,3.0046]
[1722284860775,0.89899994,3329.0,3328.3,3.00453]
[1722284860951,3.5932694,3329.1,3328.4,3.00444]
[1722284861155,3.00396,3329.0,3327.9,3.00489]
[1722284861762,3.004,3328.9,3327.9,3.00489]
[1722284862062,0.3004,3328.8,3327.9,3.00489]
[1722284862762,0.3004,3328.8,3327.7,3.00505]
[1722284863070,0.3004,3328.8,3327.4,3.00533]
[1722284863071,5.25763,3328.7,3327.4,3.00533]
[1722284863426,5.25763,3328.7,3327.7,3.00507]
[1722284865165,5.25763,3328.7,3327.5,6.00523]
[1722284865166,3.00429,3328.6,3327.5,6.00523]
[1722284865492,3.00441,3328.5,3327.5,3.00523]
[1722284865634,0.300441,3328.4,3327.5,3.00523]
[1722284866072,5.25763,3328.7,3327.7,3.00501]
[1722284867878,5.25763,3328.7,3327.8,3.00498]
[1722284868904,2.2534,3328.7,3327.8,3.00498]
[1722284869067,5.2534,3328.7,3327.8,3.00498]
[1722284869267,8.25757,3328.7,3327.8,3.00498]
[1722284869506,8.25757,3328.7,3327.9,3.00486]
[1722284869507,0.825757,3328.6,3327.9,3.00486]
[1722284870014,0.825757,3328.6,3327.6,3.00513]
[1722284870015,2.2907,3328.5,3327.6,3.00513]
[1722284870180,5.29511,3328.5,3327.6,3.00513]
[1722284870383,2.2907,3328.5,3327.6,3.00513]
[1722284870615,3.2027637,3328.5,3327.7,3.00506]
[1722284871379,2.2907,3329.0,3327.8,3.60609752]
[1722284871618,2.2907,3329.0,3328.6,3.00421]
[1722284872005,2.2907,3329.7,3328.9,3.00398]
[1722284872328,2.2907,3329.7,3329.1,3.00379]
[1722284872512,2.2907,3329.7,3329.2,3.00371]
[1722284872831,2.2907,3329.7,3329.2,3.00367]
[1722284874307,2.51977,3329.7,3328.8,3.00406]
[1722284874619,2.51977,3329.7,3328.6,3.00425]
[1722284875032,2.51977,3329.7,3328.3,3.546]
[1722284875033,5.52307,3329.7,3328.3,3.546]
[1722284875329,5.52307,3329.7,3328.7,3.00417]
[1722284875996,2.51977,3329.7,3328.8,3.00406]
[1722284877535,2.2907,3329.7,3328.8,3.00406]
[1722284878642,2.2907,3329.7,3328.4,3.0]
[1722284878643,2.2907,3329.7,3328.9,3.00397]
[1722284879307,2.2907,3329.7,3329.0,3.0039]
[1722284879526,2.2907,3329.7,3328.8,3.00403]
[1722284879751,2.2907,3329.7,3328.7,3.00417]
[1722284879752,2.2907,3329.7,3328.9,3.00399]
[1722284879894,2.2907,3329.7,3329.0,3.00389]
[1722284880447,2.2907,3329.7,3328.9,3.00391]
[1722284880738,2.2907,3329.7,3329.0,3.00389]
[1722284880940,2.2907,3329.7,3328.9,3.00399]
[1722284881313,2.2907,3329.7,3329.0,0.06006967]
[1722284881649,2.2907,3329.7,3329.0,3.00383]
[1722284881802,2.2907,3329.7,3328.7,3.00415]
[1722284882145,2.2907,3329.7,3328.9,3.00393]
[1722284882396,2.2907,3329.7,3328.4,3.0]
[1722284882397,2.2907,3329.7,3329.0,3.0039]
[1722284882701,2.2907,3329.7,3329.3,3.00362]
[1722284882899,3.00281,3330.3,3329.1,0.06006966]
[1722284882900,2.3461,3330.3,3329.4,3.00354]
[1722284883081,2.3461,3330.3,3329.2,3.00371]
[1722284883082,3.0065914,3330.3,3329.3,0.0600661]
[1722284883289,2.3461,3330.3,3329.6,3.00334]
[1722284883498,2.3461,3330.3,3329.7,0.06006264]
[1722284883701,2.3461,3330.3,3329.8,3.00312]
[1722284884008,4.57356089,3331.2,3329.9,3.00306]
[1722284884009,2.3461,3330.8,3329.9,3.00306]
[1722284884168,0.23461,3330.7,3330.0,3.00298]
[1722284884663,0.23461,3330.7,3330.1,3.00287]
[1722284884863,0.23461,3330.7,3330.0,3.00298]
[1722284884864,0.23461,3330.7,3330.2,3.00281]
[1722284885982,0.23461,3330.7,3329.8,3.00315]
[1722284886181,3.23698,3330.7,3329.8,3.00315]
[1722284886403,0.558308,3330.6,3329.8,3.00315]
[1722284886608,0.23461,3330.7,3329.8,3.00315]
[1722284887112,3.23698,3330.7,3329.8,3.00315]
[1722284887512,3.00247,3330.6,3329.6,3.00334]
[1722284887873,0.23461,3330.7,3329.7,3.00324]
[1722284888310,3.23698,3330.7,3329.7,3.00324]
[1722284888516,0.558308,3330.6,3329.7,3.00324]
[1722284889078,3.560798,3330.6,3329.6,3.00334]
[1722284889407,3.00255,3330.5,3329.4,3.00347]
[1722284889751,3.00275,3330.3,3329.3,10.34363]
[1722284890288,2.4589,3330.1,3329.0,3.00388]
[1722284890490,3.00306,3330.0,3329.1,3.0]
[1722284890703,3.00306,3330.0,3328.8,3.00407]
[1722284890704,3.00319,3329.8,3328.8,3.00407]
[1722284891072,3.00319,3329.8,3328.9,3.00399]
[1722284891279,0.546196,3329.9,3328.9,3.00399]
[1722284891717,3.0032,3329.8,3328.9,3.00399]
[1722284891878,3.6584456,3329.8,3328.9,3.00399]
[1722284893750,0.6552456,3329.8,3328.9,3.00399]
[1722284894100,5.46182,3330.1,3329.1,3.00379]
[1722284895509,3.00302,3330.0,3329.1,3.00379]
[1722284895744,3.00302,3330.0,3328.9,3.00392]
[1722284896054,3.00302,3330.0,3329.0,3.00382]
[1722284899643,3.00309,3329.9,3329.0,3.00382]
[1722284899850,0.300309,3329.8,3328.8,3.00402]
[1722284900753,0.300309,3329.8,3329.1,3.00379]
[1722284902154,0.300309,3329.8,3328.6,3.546]
[1722284902155,0.300309,3329.8,3329.2,3.00372]
[1722284902453,2.4589,3330.1,3329.2,3.00372]
[1722284902613,8.46183,3330.1,3329.1,3.0038]
[1722284903127,3.003,3330.0,3329.1,3.0038]
[1722284908027,3.003,3330.0,3328.9,5.65792]
[1722284908234,3.00318,3329.8,3328.9,5.65792]
[1722284908722,6.00606,3330.0,3329.0,3.00389]
[1722284908920,4.149586,3329.9,3329.0,3.00389]
[1722284912526,1.146496,3329.9,3329.1,3.0038]
[1722284913426,4.149586,3329.9,3328.9,5.65791]
[1722284913918,4.149586,3329.9,3329.0,3.00389]
[1722284914117,0.7152586,3329.8,3329.0,3.00389]
[1722284914768,0.7152586,3329.8,3329.1,3.00378]
[1722284915061,1.146496,3329.9,3329.1,3.00378]
[1722284918866,4.149596,3329.9,3328.9,5.65792]
[1722284919266,4.149596,3329.9,3329.0,3.00389]
[1722284919451,1.146496,3329.9,3329.1,3.00377]
[1722284923601,1.146496,3329.9,3329.1,3.00374]
[1722284924123,2.4589,3330.1,3329.3,6.00714]
[1722284924324,4.26016503,3330.3,3329.6,3.00329]
[1722284924325,1.26012523,3330.3,3329.6,3.00329]
[1722284924497,1.95470334,3330.5,3329.6,3.00329]
[1722284924498,7.03984203,3330.5,3329.6,3.00329]
[1722284924700,0.49571833,3330.4,3329.6,3.00329]
[1722284924888,3.49835833,3330.4,3329.4,0.06006543]
[1722284925093,3.49835833,3330.4,3329.5,3.00343]
[1722284925294,4.75848356,3330.4,3329.5,3.00343]
[1722284925519,0.75356304,3330.3,3329.5,3.00343]
[1722284925728,0.75356304,3330.3,3329.6,3.00336]
[1722284926253,0.75356304,3330.3,3329.4,3.06353543]
[1722284926465,3.00283,3330.2,3329.3,5.65758]
[1722284926753,2.01368827,3330.3,3329.3,5.65758]
[1722284926754,0.50165183,3330.1,3329.3,5.65758]
[1722284926950,0.75356304,3330.3,3329.7,3.00324]
[1722284927314,3.65772523,3330.5,3329.7,3.00324]
[1722284927513,2.3976,3330.5,3329.7,3.00324]
[1722284927953,6.65772523,3330.5,3329.7,3.00324]
[1722284928606,6.65772523,3330.5,3329.7,6.00643]
[1722284928810,5.3976,3330.5,3329.7,3.00319]
[1722284929121,5.3976,3330.5,3329.3,2.654]
[1722284929122,0.66577252,3330.4,3329.6,3.06340058]
[1722284930761,0.66577252,3330.4,3329.7,3.00321]
[1722284930908,0.66577252,3330.4,3329.8,3.0632206]
[1722284931618,3.65815626,3330.5,3329.8,3.0632206]
[1722284932659,2.3976,3330.5,3329.8,3.0632206]
[1722284932810,2.3976,3330.5,3330.0,3.00295]
[1722284933011,2.3976,3330.5,3330.0,3.00293]
[1722284933213,1.26055626,3330.7,3330.0,3.00293]
[1722284933616,1.26055626,3330.8,3330.0,3.00293]
[1722284933818,1.26055626,3330.7,3330.0,3.00293]
[1722284934545,1.26055626,3330.8,3330.0,3.00293]
[1722284934717,1.63494141,3330.8,3330.0,3.00293]
[1722284935441,6.70555626,3330.9,3330.0,3.00293]
[1722284935642,1.26055626,3330.8,3330.0,3.00293]
[1722284935845,1.26055626,3330.8,3329.8,3.00315]
[1722284935846,1.26055626,3330.7,3329.8,3.00312]
[1722284936356,1.26055626,3330.7,3329.9,3.00305]
[1722284937649,1.26055626,3330.7,3329.8,3.00318]
[1722284939097,4.26283626,3330.8,3329.8,3.00318]
[1722284939964,2.6891042,3330.8,3329.8,3.00318]
[1722284940305,3.00237,3330.7,3329.8,3.00313]
[1722284940883,3.00237,3330.7,3329.6,3.00329]
[1722284940884,2.68858195,3330.8,3329.9,3.00308]
[1722284941287,5.69091195,3330.8,3329.9,3.00308]
[1722284942675,1.26003401,3330.7,3329.9,3.00308]
[1722284942870,4.26241401,3330.7,3329.7,3.0032]
[1722284943285,3.00246,3330.6,3329.6,3.00332]
[1722284943704,3.00257,3330.5,3329.6,3.00332]
[1722284944108,3.00295,3330.1,3329.1,3.0]
[1722284944308,3.00295,3330.1,3328.9,7.34]
[1722284944309,4.26262697,3330.3,3329.0,3.00384]
[1722284944469,3.00304,3330.0,3328.9,10.34391]
[1722284944670,3.00304,3330.0,3328.9,3.00391]
[1722284944869,0.88374482,3330.3,3328.8,3.00407]
[1722284944870,5.4531,3329.9,3328.8,3.00407]
[1722284945111,3.00333,3329.7,3328.8,3.00407]
[1722284946393,3.00338,3329.6,3328.6,3.0042]
[1722284947203,3.00351,3329.5,3328.5,3.00433]
[1722284947407,3.00351,3329.5,3328.6,3.0]
[1722284947630,3.00351,3329.5,3328.6,6.00424]
[1722284949186,3.00333,3329.7,3328.7,3.00416]
[1722284949583,6.1243957,3329.9,3329.0,3.00384]
[1722284949584,3.70985697,3329.9,3329.0,3.00384]
[1722284949787,2.45,3329.9,3329.0,3.00384]
[1722284950017,2.45,3329.9,3329.1,3.00381]
[1722284953826,1.25989877,3330.1,3329.3,2.654]
[1722284954034,3.94347346,3330.3,3329.6,3.0033]
[1722284954035,2.3686,3330.3,3329.6,3.0033]
[1722284954237,2.3686,3330.3,3329.4,0.06006221]
[1722284954442,1.25989877,3330.7,3329.9,3.00309]
[1722284954443,2.3686,3330.7,3329.9,3.00309]
[1722284954614,2.3686,3330.7,3330.1,3.0029]
[1722284959634,2.3686,3330.7,3330.2,3.00276]
[1722284960145,2.3686,3330.7,3330.2,3.00282]
[1722284960736,2.3686,3330.7,3330.0,3.06299181]
[1722284960907,2.3686,3330.7,3330.0,3.00294]
[1722284961602,2.3686,3330.7,3330.1,3.0029]
[1722284961802,2.3686,3330.7,3330.1,3.06295187]
[1722284963046,2.3686,3330.7,3330.1,3.0029]
[1722284963915,2.3686,3330.7,3329.8,3.00314]
[1722284964324,2.3686,3330.7,3330.0,3.003]
[1722284965057,2.3686,3330.7,3329.8,3.00311]
[1722284965263,5.37097,3330.7,3329.8,3.00314]
[1722284965648,3.00254,3330.6,3329.5,7.34]
[1722284965978,3.00254,3330.6,3329.6,6.00335]
[1722284968181,6.00509,3330.6,3329.6,6.00335]
[1722284968735,4.46489584,3330.7,3329.5,7.34]
[1722284968946,2.3348,3330.1,3329.5,7.34]
[1722284970786,2.2848,3330.1,3329.3,3.00362]
[1722284972399,2.2848,3330.1,3329.3,3.00357]
[1722284972980,2.2848,3330.1,3328.9,3.00393]
[1722284973279,3.00312,3329.9,3328.9,3.00393]
[1722284975867,3.00312,3329.9,3329.0,3.00389]
[1722284977332,6.00225,3330.9,3329.0,3.00389]
[1722284977333,2.2843,3330.7,3329.5,2.654]
[1722284977465,2.2843,3330.7,3329.8,3.00309]
[1722284977670,2.2843,3330.7,3329.5,2.654]
[1722284977671,2.2843,3330.7,3330.1,3.0029]
[1722284978894,5.28667,3330.7,3329.8,3.00318]
[1722284979100,2.51273,3330.7,3329.9,3.00303]
[1722284979536,2.51273,3330.7,3330.0,3.00298]
[1722284979537,2.2843,3330.7,3330.0,3.00298]
[1722284980384,2.2843,3330.7,3329.9,0.33514645]
[1722284980589,3.00246,3330.6,3329.9,0.33514645]
[1722284980822,3.00261,3330.5,3329.9,0.33514645]
[1722284984301,3.00264,3330.4,3329.9,0.33514645]
[1722284984505,0.600525,3330.3,3329.9,0.33514645]
[1722284986607,5.28671,3330.7,3329.9,0.33514645]
[1722284988346,2.2843,3330.7,3329.9,3.33821645]
[1722284993532,1.25908014,3330.8,3330.0,2.53075847]
[1722284993849,1.25908014,3331.2,3330.3,3.00264]
[1722284994236,2.07266536,3331.2,3330.5,3.00255]
[1722284994763,0.81358522,3331.2,3330.5,3.00255]
[1722284995061,1.25908014,3331.3,3330.5,3.00255]
[1722284995566,4.25908014,3331.3,3330.5,3.00247]
[1722284995862,1.25908014,3331.2,3330.5,3.00247]
[1722284996157,4.25908014,3331.3,3330.4,0.0600475]
[1722284996360,1.25908014,3331.2,3330.5,3.00249]
[1722284996567,4.25908014,3331.3,3330.5,3.00249]
[1722284996874,1.25908014,3331.2,3330.5,3.00249]
[1722284997175,4.25908014,3331.3,3330.5,3.00249]
[1722284998638,4.25908014,3331.3,3330.5,6.00496]
[1722284998860,4.25908014,3331.3,3330.5,3.00247]
[1722284999071,4.25908014,3331.3,3330.5,3.00248]
[1722284999372,4.25908014,3331.3,3330.8,1.105]
[1722284999547,3.55978014,3331.4,3331.2,0.33514645]
[1722284999745,2.3007,3331.4,3331.2,0.33514645]
[1722285000072,2.9883462,3331.4,3331.2,0.33514645]
[1722285000272,2.3007,3331.4,3331.2,0.33514645]
[1722285000637,4.26064014,3331.6,3331.2,0.33514645]
[1722285000829,1.25908014,3331.9,3331.4,1.105]
[1722285001070,28.78783327,3332.0,3331.6,1.105]
[1722285002749,28.78783327,3332.0,3331.2,0.39518038]
[1722285002949,31.83684615,3332.0,3331.2,0.33514645]
[1722285003258,3.0016,3331.6,3331.2,0.33514645]
[1722285003462,33.09592629,3332.0,3331.2,0.33514645]
[1722285003463,3.0015,3331.7,3331.2,0.33514645]
[1722285003666,3.00167,3331.5,3331.2,0.33514645]
[1722285004061,3.00175,3331.4,3331.2,0.33514645]
[1722285004233,3.00183,3331.3,3331.2,0.33514645]
[1722285004441,5.40135,3331.4,3331.2,0.33514645]
[1722285004442,2.3996,3331.4,3331.2,0.33514645]
[1722285004640,0.30015,3331.6,3331.3,0.33514645]
[1722285004641,3.30171,3331.6,3331.3,0.33514645]
[1722285004953,3.00174,3331.4,3331.3,0.33514645]
[1722285005296,6.00348,3331.4,3331.3,0.33514645]
[1722285005934,3.00174,3331.4,3331.3,0.33514645]
[1722285006139,1.25908014,3331.7,3331.3,0.33514645]
[1722285006508,4.28635328,3332.1,3331.3,0.33514645]
[1722285006509,1.25908014,3331.9,3331.3,0.33514645]
[1722285006641,28.78783327,3332.0,3331.3,0.33514645]
[1722285006841,28.78783327,3332.0,3331.3,3.33695645]
[1722285007241,28.78783327,3332.0,3331.4,3.06174921]
[1722285007471,28.78783327,3332.0,3331.8,3.00131]
[1722285007702,28.78783327,3332.0,3331.9,3.00129]
[1722285007980,28.78783327,3332.0,3331.9,11.12308]
[1722285009035,28.78783327,3332.0,3331.9,14.12437]
[1722285009273,28.78783327,3332.0,3331.9,17.12437]
[1722285009484,28.16150538,3332.0,3331.9,17.12437]
[1722285010043,28.16150538,3332.0,3331.9,14.12308]
[1722285010705,28.16150538,3332.0,3331.9,11.12179]
[1722285011186,28.16150538,3332.0,3331.9,14.12308]